fUSD/lending_fUSD_20250304
["ID","MTS","AMOUNT","RATE_DAILY","PERIOD"]
[355336048,1741067455641,-230.95048,0.00012962,2]
[355336050,1741067455651,-4075.31,0.00012962,2]
[355336052,1741067455661,-500.0,0.00012962,2]
[355336054,1741067455670,-500.0,0.00012962,2]
[355336056,1741067455680,-500.0,0.00012962,2]
[355336058,1741067455690,-881.45,0.00012962,2]
[355336060,1741067455700,-500.0,0.00012962,2]
[355336062,1741067455709,-1936.64,0.00012962,2]
[355336064,1741067455718,-404.49687449,0.00012962,2]
[355336066,1741067455727,-500.0,0.00012962,2]
[355336068,1741067455735,-964.16,0.00012962,2]
[355336070,1741067455745,-2435.73,0.00012962,2]
[355336072,1741067455754,-3408.08,0.00012962,2]
[355336074,1741067455764,-500.0,0.00012962,2]
[355336076,1741067455774,-1485.63,0.00012962,2]
[355336078,1741067455783,-151.0,0.00012962,2]
[355336080,1741067455792,-5928.21,0.00012962,2]
[355336082,1741067455802,-1107.89,0.00012962,2]
[355336084,1741067455812,-1295.39,0.00012962,2]
[355336086,1741067455821,-500.0,0.00012962,2]
[355336088,1741067455831,-500.0,0.00012962,2]
[355336090,1741067455840,-2448.78,0.00012962,2]
[355336092,1741067455849,-500.0,0.00012962,2]
[355336094,1741067455858,-500.0,0.00012962,2]
[355336096,1741067455869,-704.51,0.00012962,2]
[355336098,1741067455878,-500.0,0.00012962,2]
[355336100,1741067455887,-4359.31,0.00012962,2]
[355336102,1741067455896,-500.0,0.00012962,2]
[355336104,1741067455906,-500.0,0.00012962,2]
[355336106,1741067455915,-1120.21,0.00012962,2]
[355336108,1741067455925,-646.59,0.00012962,2]
[355336110,1741067455934,-4051.94,0.00012962,2]
[355336112,1741067455943,-2519.08,0.00012962,2]
[355336114,1741067455952,-500.0,0.00012962,2]
[355336116,1741067455962,-815.218788,0.00012962,2]
[355336118,1741067455971,-2912.95,0.00012962,2]
[355336119,1741067455980,-4449.49,0.00012962,2]
[355336121,1741067455990,-500.0,0.00012962,2]
[355336123,1741067455999,-815.218788,0.00012962,2]
[355336125,1741067456009,-498.6232038,0.00012962,2]
[355336127,1741067456018,-500.0,0.00012962,2]
[355336129,1741067456027,-220.33025669,0.00012962,2]
[355336131,1741067456037,-151.0,0.00012962,2]
[355336133,1741067456048,-500.0,0.00012962,2]
[355336135,1741067456058,-944.47,0.00012962,2]
[355336138,1741067456073,-500.0,0.00012962,2]
[355336140,1741067456082,-500.0,0.00012962,2]
[355336142,1741067456091,-500.0,0.00012962,2]
[355336144,1741067456101,-3866.93,0.00012962,2]
[355336146,1741067456110,-155.994251,0.00012963,2]
[355336148,1741067456120,-155.994251,0.00012963,2]
[355336150,1741067456130,-151.0,0.00012963,2]
[355336152,1741067456139,-500.0,0.00012963,2]
[355336154,1741067456148,-567.29677989,0.00012963,2]
[355336155,1741067456163,-151.911221,0.00012963,2]
[355336158,1741067456178,-151.890928,0.00012963,2]
[355336159,1741067456198,-151.0,0.00012963,2]
[355336161,1741067456217,-627.98,0.00012963,2]
[355336163,1741067456227,-500.0,0.00012963,2]
[355336165,1741067456237,-1401.23,0.00012963,2]
[355336167,1741067456246,-1397.83,0.00012963,2]
[355336169,1741067456256,-500.0,0.00012963,2]
[355336171,1741067456265,-632.61387959,0.00012963,2]
[355336173,1741067456274,-500.0,0.00012963,2]
[355336175,1741067456284,-1496.45,0.00012963,2]
[355336177,1741067456294,-500.0,0.00012963,2]
[355336179,1741067456306,-500.0,0.00012963,2]
[355336181,1741067456316,-1332.53,0.00012963,2]
[355336183,1741067456326,-2075.91,0.00012963,2]
[355336185,1741067456335,-1707.37,0.00012963,2]
[355336187,1741067456346,-1228.32,0.00012963,2]
[355336189,1741067456355,-500.0,0.00012963,2]
[355336191,1741067456364,-1741.68,0.00012963,2]
[355336193,1741067456377,-1841.48,0.00012963,2]
[355336195,1741067456387,-996.09,0.00012963,2]
[355336197,1741067456397,-1228.6,0.00012963,2]
[355336199,1741067456407,-1834.28,0.00012963,2]
[355336201,1741067456416,-904.92,0.00012963,2]
[355336203,1741067456426,-2941.15,0.00012963,2]
[355336205,1741067456436,-1947.82,0.00012963,2]
[355336207,1741067456445,-1763.53,0.00012963,2]
[355336209,1741067456455,-1427.22,0.00012963,2]
[355336211,1741067456464,-2524.45,0.00012963,2]
[355336213,1741067456474,-1028.03,0.00012963,2]
[355336215,1741067456484,-947.05,0.00012963,2]
[355336217,1741067456493,-1377.21,0.00012963,2]
[355336219,1741067456502,-1745.17,0.00012963,2]
[355336221,1741067456512,-2370.76,0.00012963,2]
[355336223,1741067456522,-1066.02,0.00012963,2]
[355336225,1741067456531,-2486.0,0.00012963,2]
[355336227,1741067456540,-1244.43,0.00012963,2]
[355336229,1741067456550,-526.04325501,0.00012963,2]
[355336231,1741067456560,-1630.97,0.00012963,2]
[355336233,1741067456569,-711.49,0.00012963,2]
[355336235,1741067456578,-1798.0,0.00012963,2]
[355336237,1741067456588,-2822.84,0.00012963,2]
[355336239,1741067456597,-673.13,0.00012963,2]
[355336241,1741067456607,-1313.64,0.00012963,2]
[355336243,1741067456618,-2022.42,0.00012963,2]
[355336245,1741067456627,-500.0,0.00012963,2]
[355336247,1741067456636,-1210.34,0.00012963,2]
[355336248,1741067456645,-500.0,0.00012963,2]
[355336249,1741067456655,-155.994251,0.00012964,2]
[355336250,1741067456664,-155.994251,0.00012964,2]
[355336251,1741067456673,-151.0,0.00012964,2]
[355336252,1741067456683,-151.0,0.00012964,2]
[355336253,1741067456692,-151.0,0.00012964,2]
[355336254,1741067456702,-151.0,0.00012964,2]
[355336255,1741067456711,-151.0,0.00012965,2]
[355336256,1741067456721,-151.0,0.00012965,2]
[355336257,1741067456730,-759.78,0.00012965,2]
[355336258,1741067456740,-964.45,0.00012965,2]
[355336259,1741067456750,-500.0,0.00012965,2]
[355336260,1741067456760,-500.0,0.00012965,2]
[355336261,1741067456772,-500.0,0.00012965,2]
[355336262,1741067456783,-756.29,0.00012965,2]
[355336263,1741067456794,-500.0,0.00012965,2]
[355336264,1741067456805,-500.0,0.00012965,2]
[355336265,1741067456814,-500.0,0.00012965,2]
[355336267,1741067456824,-728.78,0.00012965,2]
[355336268,1741067456833,-518.47271574,0.00012965,2]
[355336270,1741067456843,-500.0,0.00012965,2]
[355336272,1741067456853,-500.0,0.00012965,2]
[355336274,1741067456863,-500.0,0.00012965,2]
[355336276,1741067456874,-672.26,0.00012965,2]
[355336278,1741067456883,-898.41,0.00012965,2]
[355336280,1741067456893,-629.14135693,0.00012965,2]
[355336282,1741067456903,-500.0,0.00012965,2]
[355336284,1741067456912,-500.0,0.00012965,2]
[355336286,1741067456921,-718.58,0.00012965,2]
[355336288,1741067456931,-1277.65,0.00012965,2]
[355336290,1741067456941,-500.0,0.00012965,2]
[355336292,1741067456950,-529.14325107,0.00012965,2]
[355336294,1741067456959,-500.0,0.00012965,2]
[355336296,1741067456969,-720.09,0.00012965,2]
[355336298,1741067456978,-500.0,0.00012965,2]
[355336300,1741067456988,-1275.72,0.00012965,2]
[355336302,1741067456997,-500.0,0.00012965,2]
[355336304,1741067457007,-580.76,0.00012965,2]
[355336306,1741067457017,-778.05,0.00012965,2]
[355336308,1741067457027,-155.994251,0.00012966,2]
[355336310,1741067457037,-155.994251,0.00012966,2]
[355336312,1741067457046,-151.0,0.00012966,2]
[355336314,1741067457057,-151.248673,0.00012966,2]
[355336316,1741067457067,-1500.0,0.0001297,2]
[355336318,1741067457077,-500.0,0.00012973,2]
[355336320,1741067457086,-151.0,0.00012989,2]
[355336322,1741067457096,-151.0,0.00012989,2]
[355336324,1741067457105,-152.023537,0.00012989,2]
[355336326,1741067457114,-151.0,0.00012989,2]
[355336328,1741067457125,-1277.0,0.00012993,2]
[355336330,1741067457134,-2031.0,0.00012993,2]
[355336332,1741067457144,-571.0,0.00012993,2]
[355336334,1741067457153,-150.0,0.00012993,2]
[355336336,1741067457163,-640.0,0.00012993,2]
[355336338,1741067457172,-1624.0,0.00012993,2]
[355336340,1741067457181,-786.0,0.00012993,2]
[355336342,1741067457191,-1269.0,0.00012993,2]
[355336344,1741067457199,-909.0,0.00012993,2]
[355336346,1741067457208,-1427.0,0.00012993,2]
[355336348,1741067457218,-541.0,0.00012993,2]
[355336350,1741067457227,-4136.467,0.00012993,2]
[355336352,1741067457236,-272.692,0.00012993,2]
[355336354,1741067457245,-150.0,0.00012993,2]
[355336355,1741067457255,-3929.0,0.00012993,2]
[355336357,1741067457264,-159.658,0.00012993,2]
[355336359,1741067457273,-165.603,0.00012993,2]
[355336361,1741067457282,-150.0,0.00012993,2]
[355336363,1741067457292,-1012.0,0.00012993,2]
[355336365,1741067457304,-169.187,0.00012993,2]
[355336367,1741067457314,-151.0,0.00012993,2]
[355336370,1741067457324,-7167.835113,0.00012993,2]
[355336371,1741067457333,-151.0,0.00012993,2]
[355336373,1741067457343,-7167.835113,0.00012993,2]
[355336375,1741067457354,-151.0,0.00012993,2]
[355336377,1741067457363,-151.0,0.00012993,2]
[355336379,1741067457374,-151.0,0.00012993,2]
[355336381,1741067457385,-230.95048,0.00012993,2]
[355336383,1741067457395,-230.95048,0.00012993,2]
[355336385,1741067457404,-12848.6132118,0.00012995,2]
[355336387,1741067457414,-5739.2278825,0.00012995,2]
[355336389,1741067457423,-1458.8709689,0.00012995,2]
[355336391,1741067457432,-792.6577444,0.00012995,2]
[355336393,1741067457442,-157.03,0.00012998,2]
[355336395,1741067457451,-345.51016469,0.00013,2]
[355336397,1741067457460,-543469.95205644,0.00013,2]
[355336399,1741067457470,-413366.41151634,0.00013,2]
[355336497,1741067458405,-1057.16009996,0.00013,2]
[355336597,1741067459556,-750.27,0.00012599,2]
[355336599,1741067459566,-695.38,0.00012687,2]
[355336601,1741067459575,-500.0,0.00012687,2]
[355336603,1741067459584,-500.0,0.00012687,2]
[355336605,1741067459594,-500.0,0.00012688,2]
[355336607,1741067459603,-4527.89076257,0.0001283,2]
[355336609,1741067459613,-750.27,0.00012873,2]
[355336611,1741067459624,-234.98923743,0.00012961,2]
[355336613,1741067459635,-277.45488033,0.00012961,2]
[355336616,1741067459647,-182.93588224,0.00012961,2]
[355336618,1741067459656,-500.0,0.00012962,2]
[355336620,1741067459666,-438.32579281,0.00013,2]
[355336634,1741067459793,1995.8525,0.000125,2]
[355337597,1741067470375,300.0,0.000123,4]
[355337749,1741067472465,600.0,0.000124,4]
[355337923,1741067474571,900.0,0.000125,4]
[355338778,1741067555828,1000.0,0.00011999,2]
[355338779,1741067558340,500.0,0.0001018,2]
[355338780,1741067729169,5539.0,0.000102,5]
[355338781,1741067736223,3124.2187,0.00012499,2]
[355338782,1741067786086,206.24,0.00011815,2]
[355338784,1741067890164,166.37850224,0.00012487,2]
[355338785,1741067892428,500.75182937,0.00012487,2]
[355338786,1741067910189,2916.871,0.00012335,2]
[355338787,1741067910221,185.62733776,0.00012335,2]
[355338788,1741067911497,2193.91802855,0.00012487,2]
[355338789,1741067929086,928126.73767531,0.00012387,2]
[355338790,1741067946745,13946.19403298,0.00012487,2]
[355338791,1741067985872,19210.94337807,0.00012287,2]
[355338792,1741068003969,156.0,0.00012499,3]
[355338793,1741068013245,406.43675017,0.00012487,2]
[355338794,1741068019358,181.2335699,0.00012486,2]
[355338795,1741068022734,200.0,0.00011719,2]
[355338796,1741068035966,3957.53392845,0.00012487,2]
[355338797,1741068043622,1648.2361,0.00012487,2]
[355338798,1741068056074,262.18977099,0.00012487,2]
[355338799,1741068106933,595.72,9.809e-05,2]
[355338800,1741068106984,595.72,0.00012073,2]
[355338801,1741068134449,173.34,0.00012101,2]
[355338802,1741068135634,8706.68598921,0.00012,2]
[355338803,1741068152644,34671.52584551,0.00012487,2]
[355338804,1741068215524,2751.0,0.00011726,2]
[355338805,1741068219269,250.8446,0.00012486,2]
[355338806,1741068221651,677.74231566,0.00012486,2]
[355338807,1741068224451,753.58,0.00011726,2]
[355338808,1741068235537,58120.43874116,0.00012486,2]
[355338809,1741068272316,250.0,0.00011726,2]
[355338810,1741068402550,274.4,0.00011586,2]
[355338811,1741068402607,6505.0,0.00011586,2]
[355338812,1741068402639,5580.0,0.00011586,2]
[355338816,1741068584428,4004.0,0.00011123,2]
[355338818,1741068605562,-3431.0,0.00011123,2]
[355338819,1741068605610,-150.0,0.0001133,2]
[355338820,1741068605668,-150.83,0.00011537,2]
[355338821,1741068605726,-300.0,0.00011585,2]
[355338822,1741068605778,-2838.20268052,0.00011586,2]
[355338823,1741068605830,-4774.48585849,0.00011586,2]
[355338834,1741068631940,-3828.73165214,0.00011586,2]
[355338835,1741068631951,-99.17980885,0.00011586,2]
[355338836,1741068631960,-150.83,0.00011619,2]
[355338837,1741068631970,-150.83,0.00011701,2]
[355338838,1741068631979,-150.83,0.00011784,2]
[355338839,1741068631988,-150.83,0.00011866,2]
[355338840,1741068631997,-16.69342038,0.00011949,2]
[355338841,1741068632008,-134.13657962,0.00011949,2]
[355338842,1741068632018,-150.83,0.00012031,2]
[355338843,1741068632029,-550.0,0.00012031,2]
[355338844,1741068632039,-150.83,0.00012113,2]
[355338845,1741068632048,-150.83,0.00012196,2]
[355338846,1741068632058,-150.0,0.00012235,2]
[355338847,1741068632068,-414.0,0.00012247,2]
[355338848,1741068632077,-150.83,0.00012278,2]
[355338849,1741068632087,-150.83,0.00012361,2]
[355338850,1741068632096,-150.83,0.00012443,2]
[355338851,1741068632106,-597.0,0.00012466,2]
[355338852,1741068632115,-1632.7528141,0.00012466,2]
[355338853,1741068632132,-2090.15361943,0.00012466,2]
[355338854,1741068632144,-1947.26790186,0.00012466,2]
[355338855,1741068632153,-150.0,0.00012475,2]
[355338856,1741068632164,-3020.73209805,0.00012476,2]
[355338857,1741068632178,-1642.207916,0.00012476,2]
[355338858,1741068632193,-1000.0,0.00012476,2]
[355338859,1741068632232,-39372.15333469,0.00012476,2]
[355338860,1741068632241,-404.17697157,0.00012486,2]
[355338861,1741068632251,-4320.95705922,0.00012486,2]
[355338862,1741068632260,-1863.08,0.00012486,2]
[355338863,1741068632270,-708.67,0.00012486,2]
[355338864,1741068632279,-591.77,0.00012486,2]
[355338865,1741068632289,-2186.72,0.00012486,2]
[355338866,1741068632299,-21258.00201533,0.00012486,2]
[355338867,1741068632311,-4023.04648129,0.00012486,2]
[355338868,1741068632323,-6773.14167211,0.00012486,2]
[355338869,1741068632336,-23067.73129832,0.00012486,2]
[355338870,1741068632348,-2763.19870811,0.00012486,2]
[355338871,1741068632360,-20100.27820664,0.00012486,2]
[355338872,1741068632380,-7224.38589391,0.00012486,2]
[355338873,1741068632398,-24307.64398313,0.00012486,2]
[355338874,1741068632408,-1676.4072,0.00012486,2]
[355338875,1741068632430,-4320.95705918,0.00012486,2]
[355338876,1741068632442,-4320.95705918,0.00012486,2]
[355338877,1741068632452,-4320.95705918,0.00012486,2]
[355338878,1741068632463,-1076.49,0.00012486,2]
[355338879,1741068632473,-1389.61,0.00012486,2]
[355338880,1741068632483,-293.9,0.00012486,2]
[355338881,1741068632494,-4320.95705918,0.00012486,2]
[355338882,1741068632505,-299.99,0.00012486,2]
[355338883,1741068632515,-999.99,0.00012486,2]
[355338884,1741068632526,-545.8,0.00012486,2]
[355338885,1741068632536,-150.99,0.00012486,2]
[355338886,1741068632547,-482.2,0.00012486,2]
[355338887,1741068632557,-4320.95705918,0.00012487,2]
[355338888,1741068632567,-150.99,0.00012487,2]
[355338890,1741068632578,-9999.99,0.00012487,2]
[355338892,1741068632588,-5718.5,0.00012487,2]
[355338894,1741068632598,-4320.95705918,0.00012487,2]
[355338896,1741068632607,-4320.95705918,0.00012487,2]
[355338898,1741068632618,-4320.95705918,0.00012487,2]
[355338900,1741068632628,-4320.95705918,0.00012487,2]
[355338902,1741068632639,-150.0,0.00012499,3]
[355338904,1741068632650,-150.83,0.00012526,2]
[355338906,1741068632663,-16907.0477,0.00012556,2]
[355338908,1741068632676,-150.15804004,0.00012573,2]
[355338910,1741068632687,-300.61715039,0.00012573,2]
[355338912,1741068632698,-500.0,0.00012573,2]
[355338914,1741068632712,-166.20849275,0.00012577,2]
[355338916,1741068632723,-166.20849275,0.00012577,2]
[355338918,1741068632734,-1648.36,0.00012584,2]
[355338920,1741068632745,-1882.46,0.00012584,2]
[355338922,1741068632756,-4006.26,0.00012584,2]
[355338924,1741068632766,-1843.35,0.00012584,2]
[355338926,1741068632776,-1376.3,0.00012584,2]
[355338928,1741068632786,-63004.51972654,0.00012584,2]
[355338933,1741068632798,-3010.36,0.00012584,2]
[355338937,1741068632809,-500.0,0.00012584,2]
[355338942,1741068632819,-500.0,0.00012584,2]
[355338949,1741068632830,-2768.44,0.00012584,2]
[355338951,1741068632840,-2217.46,0.00012584,2]
[355338955,1741068632849,-500.0,0.00012584,2]
[355338959,1741068632859,-1025.83,0.00012584,2]
[355338962,1741068632868,-836.19,0.00012584,2]
[355338965,1741068632879,-3612.63,0.00012584,2]
[355338968,1741068632889,-1953.93,0.00012584,2]
[355338971,1741068632899,-1184.41,0.00012584,2]
[355338974,1741068632909,-3724.72,0.00012584,2]
[355338977,1741068632923,-3761.91,0.00012584,2]
[355338979,1741068632934,-2784.45,0.00012584,2]
[355338981,1741068632944,-706.42,0.00012584,2]
[355338983,1741068632954,-2936.25,0.00012584,2]
[355338985,1741068632964,-1571.63,0.00012584,2]
[355338987,1741068632974,-965.04,0.00012585,2]
[355338989,1741068632984,-1331.91,0.00012585,2]
[355338991,1741068632994,-1960.59,0.00012585,2]
[355338992,1741068633004,-2882.41,0.00012585,2]
[355338994,1741068633014,-2837.8,0.00012585,2]
[355338997,1741068633024,-6288.91,0.00012585,2]
[355338999,1741068633035,-2617.6,0.00012585,2]
[355339001,1741068633045,-1470.16,0.00012585,2]
[355339003,1741068633056,-3615.11,0.00012585,2]
[355339005,1741068633066,-500.0,0.00012585,2]
[355339006,1741068633076,-2594.98,0.00012585,2]
[355339008,1741068633086,-500.0,0.00012586,2]
[355339010,1741068633096,-500.0,0.00012586,2]
[355339012,1741068633106,-500.0,0.00012586,2]
[355339014,1741068633116,-500.0,0.00012586,2]
[355339016,1741068633126,-500.0,0.00012586,2]
[355339018,1741068633136,-500.0,0.00012586,2]
[355339020,1741068633146,-500.0,0.00012586,2]
[355339022,1741068633156,-500.0,0.00012586,2]
[355339051,1741068633443,-500.0,0.00012586,2]
[355339053,1741068633453,-500.0,0.00012586,2]
[355339055,1741068633463,-500.0,0.00012586,2]
[355339057,1741068633473,-1354.07,0.00012586,2]
[355339059,1741068633484,-500.0,0.00012586,2]
[355339061,1741068633495,-500.86220362,0.00012586,2]
[355339063,1741068633504,-500.0,0.00012586,2]
[355339065,1741068633515,-500.0,0.00012586,2]
[355339067,1741068633526,-500.0,0.00012586,2]
[355339069,1741068633536,-500.0,0.00012586,2]
[355339071,1741068633547,-500.0,0.00012586,2]
[355339073,1741068633557,-2053.7,0.00012586,2]
[355339075,1741068633567,-503.01668844,0.00012586,2]
[355339077,1741068633577,-500.0,0.00012586,2]
[355339079,1741068633587,-500.0,0.00012586,2]
[355339081,1741068633597,-500.0,0.00012586,2]
[355339083,1741068633607,-500.0,0.00012586,2]
[355339085,1741068633618,-500.0,0.00012586,2]
[355339087,1741068633627,-259.70631361,0.00012586,2]
[355339089,1741068633637,-500.0,0.00012586,2]
[355339091,1741068633648,-500.0,0.00012586,2]
[355339093,1741068633659,-500.0,0.00012586,2]
[355339095,1741068633672,-1130.36,0.00012586,2]
[355339097,1741068633682,-500.0,0.00012586,2]
[355339099,1741068633693,-500.0,0.00012586,2]
[355339101,1741068633704,-500.87302475,0.00012586,2]
[355339103,1741068633717,-892.46,0.00012586,2]
[355339105,1741068633727,-500.0,0.00012586,2]
[355339107,1741068633737,-500.0,0.00012586,2]
[355339109,1741068633747,-500.0,0.00012586,2]
[355339111,1741068633759,-500.0,0.00012586,2]
[355339113,1741068633769,-500.0,0.00012586,2]
[355339115,1741068633779,-500.0,0.00012586,2]
[355339117,1741068633788,-534.18,0.00012586,2]
[355339119,1741068633799,-500.0,0.00012586,2]
[355339120,1741068633809,-500.0,0.00012586,2]
[355339122,1741068633819,-1281.1,0.00012586,2]
[355339124,1741068633829,-500.0,0.00012586,2]
[355339126,1741068633840,-500.0,0.00012586,2]
[355339128,1741068633850,-500.0,0.00012586,2]
[355339130,1741068633860,-500.0,0.00012586,2]
[355339132,1741068633871,-500.0,0.00012586,2]
[355339134,1741068633881,-500.0,0.00012586,2]
[355339136,1741068633891,-500.0,0.00012586,2]
[355339138,1741068633902,-500.0,0.00012586,2]
[355339140,1741068633917,-500.0,0.00012586,2]
[355339142,1741068633929,-500.0,0.00012586,2]
[355339144,1741068633940,-500.0,0.00012586,2]
[355339146,1741068633952,-500.0,0.00012586,2]
[355339148,1741068633963,-653.95,0.00012586,2]
[355339150,1741068633973,-500.0,0.00012586,2]
[355339152,1741068633985,-607.0,0.00012586,2]
[355339154,1741068634001,-500.0,0.00012586,2]
[355339156,1741068634013,-500.0,0.00012586,2]
[355339158,1741068634024,-500.0,0.00012586,2]
[355339160,1741068634034,-500.0,0.00012586,2]
[355339162,1741068634045,-500.0,0.00012586,2]
[355339164,1741068634056,-503.34563446,0.00012586,2]
[355339166,1741068634067,-501.44801498,0.00012586,2]
[355339168,1741068634082,-1734.34,0.00012586,2]
[355339171,1741068634093,-500.0,0.00012586,2]
[355339172,1741068634104,-500.0,0.00012586,2]
[355339173,1741068634115,-500.0,0.00012586,2]
[355339174,1741068634125,-500.0,0.00012586,2]
[355339175,1741068634136,-500.0,0.00012586,2]
[355339176,1741068634146,-1141.17,0.00012586,2]
[355339177,1741068634156,-500.0,0.00012586,2]
[355339178,1741068634168,-500.0,0.00012586,2]
[355339179,1741068634178,-500.0,0.00012586,2]
[355339180,1741068634189,-501.42526319,0.00012586,2]
[355339181,1741068634198,-502.68967529,0.00012586,2]
[355339182,1741068634209,-500.0,0.00012586,2]
[355339183,1741068634219,-500.0,0.00012586,2]
[355339184,1741068634229,-500.0,0.00012586,2]
[355339185,1741068634238,-625.86785159,0.00012586,2]
[355339186,1741068634249,-1202.1,0.00012586,2]
[355339187,1741068634258,-500.0,0.00012586,2]
[355339188,1741068634268,-500.0,0.00012586,2]
[355339189,1741068634278,-500.0,0.00012586,2]
[355339190,1741068634288,-500.0,0.00012586,2]
[355339191,1741068634297,-500.0,0.00012586,2]
[355339192,1741068634307,-627.29,0.00012586,2]
[355339193,1741068634317,-796.03,0.00012586,2]
[355339194,1741068634327,-482.49560516,0.00012586,2]
[355339195,1741068634337,-1654.04,0.00012586,2]
[355339196,1741068634347,-500.0,0.00012586,2]
[355339197,1741068634357,-500.0,0.00012586,2]
[355339198,1741068634367,-506.01426394,0.00012586,2]
[355339199,1741068634377,-500.0,0.00012586,2]
[355339201,1741068634388,-500.0,0.00012586,2]
[355339203,1741068634399,-500.0,0.00012586,2]
[355339205,1741068634409,-500.0,0.00012586,2]
[355339207,1741068634421,-1088.21,0.00012586,2]
[355339209,1741068634431,-500.0,0.00012586,2]
[355339211,1741068634441,-500.0,0.00012586,2]
[355339213,1741068634451,-509.1372711,0.00012586,2]
[355339215,1741068634461,-820.56,0.00012586,2]
[355339217,1741068634471,-500.0,0.00012586,2]
[355339219,1741068634482,-500.0,0.00012586,2]
[355339221,1741068634493,-500.0,0.00012586,2]
[355339223,1741068634502,-500.0,0.00012586,2]
[355339225,1741068634512,-500.0,0.00012586,2]
[355339227,1741068634522,-500.0,0.00012586,2]
[355339229,1741068634532,-1097.5,0.00012586,2]
[355339230,1741068634542,-585.16213734,0.00012586,2]
[355339232,1741068634552,-500.0,0.00012586,2]
[355339234,1741068634562,-500.0,0.00012586,2]
[355339236,1741068634571,-501.25566938,0.00012586,2]
[355339239,1741068634581,-500.0,0.00012586,2]
[355339241,1741068634591,-500.0,0.00012586,2]
[355339242,1741068634600,-500.0,0.00012586,2]
[355339245,1741068634610,-500.0,0.00012586,2]
[355339247,1741068634620,-500.0,0.00012586,2]
[355339248,1741068634629,-500.0,0.00012586,2]
[355339250,1741068634639,-500.0,0.00012586,2]
[355339253,1741068634649,-500.0,0.00012586,2]
[355339255,1741068634659,-911.03,0.00012586,2]
[355339257,1741068634669,-500.0,0.00012586,2]
[355339258,1741068634679,-500.0,0.00012586,2]
[355339260,1741068634689,-500.0,0.00012586,2]
[355339262,1741068634699,-500.0,0.00012586,2]
[355339264,1741068634712,-500.0,0.00012586,2]
[355339266,1741068634722,-500.0,0.00012586,2]
[355339268,1741068634732,-500.0,0.00012586,2]
[355339270,1741068634741,-500.0,0.00012586,2]
[355339272,1741068634753,-500.0,0.00012586,2]
[355339274,1741068634763,-500.70318857,0.00012586,2]
[355339276,1741068634773,-500.0,0.00012586,2]
[355339278,1741068634784,-500.0,0.00012586,2]
[355339280,1741068634794,-500.0,0.00012586,2]
[355339282,1741068634804,-500.0,0.00012586,2]
[355339284,1741068634814,-500.0,0.00012586,2]
[355339286,1741068634824,-1133.96,0.00012586,2]
[355339288,1741068634834,-500.0,0.00012586,2]
[355339290,1741068634844,-500.0,0.00012586,2]
[355339292,1741068634854,-500.0,0.00012586,2]
[355339294,1741068634864,-500.0,0.00012586,2]
[355339296,1741068634873,-500.0,0.00012586,2]
[355339298,1741068634883,-500.0,0.00012586,2]
[355339300,1741068634892,-848.93,0.00012586,2]
[355339302,1741068634902,-629.26,0.00012586,2]
[355339304,1741068634914,-500.0,0.00012586,2]
[355339306,1741068634923,-500.0,0.00012586,2]
[355339308,1741068634933,-500.0,0.00012586,2]